Cogmind - Beta 15 @@@ ROGUE MODE // 2025.08.19 @ 00:24:08 Player: shapeshifter Result: Destroyed by S-10 Pest with Light Assault Rifle Performance ------------- Evolutions (0) 0 Regions Visited (1) 200 Robots Destroyed (12) 60 Value Destroyed (281) 281 Prototype IDs (0) 0 Alien Tech Used (0) 0 Bonus (0) 0 TOTAL SCORE: 541 Bonus ------- None Cogmind --------- Core Integrity 0/250 Matter 300/300 Energy 100/100 System Corruption 1% Temperature Cool (0) Movement Core (1400) Ox27 Location -10/Materials Parts ------- > --- POWER (1) -------- (None) > --- PROPULSION (2) --- (None) > --- UTILITY (2) ------ Huge Storage Unit > --- WEAPON (2) ------- Maul > --- INVENTORY (25) --- Light Treads Light Treads Medium Storage Unit Large Storage Unit Huge Storage Unit Improved Terrain Scanner ECM Suite Shield Generator Shield Generator Shield Generator Peak State ------------ > --- POWER ------------ Ion Engine > --- PROPULSION ------- Light Treads Light Treads > --- UTILITY ---------- Small Storage Unit Seismic Detector > --- WEAPON ----------- EM Pulse Gun Assault Rifle > --- INVENTORY -------- Light Ion Engine Compact Wheel Compact Wheel Improved Terrain Scanner Shield Generator Small Laser Maul [Rating: 8] Favorites ----------- Power Ion Engine Engine Ion Engine Propulsion Light Treads Treads Light Treads Wheel Compact Wheel Utility Seismic Detector Device Seismic Detector Storage Small Storage Unit Weapon Assault Rifle Energy Gun EM Pulse Gun Ballistic Gun Assault Rifle Impact Weapon Maul Build | -11 -10 ------- Run | Yrd Mat Slots Evolved . | . . Power . | . . Propulsion . | . . Utility . | . . Weapon . | . . Parts Attached 13 | 7 6 Power 2 | 1 1 Engine 2 | 1 1 Core . | . . Reactor . | . . Propulsion 4 | 2 2 Treads 2 | 2 . Leg . | . . Wheel 2 | . 2 Hover . | . . Flight . | . . Utility 3 | 2 1 Device 1 | 1 . Storage 2 | 1 1 Processor . | . . Hackware . | . . Protection . | . . Artifact . | . . Weapon 4 | 2 2 Energy Gun 2 | 1 1 Energy Cannon . | . . Ballistic Gun 1 | 1 . Ballistic Cannon . | . . Launcher . | . . Special Weapon . | . . Impact Weapon 1 | . 1 Slashing Weapon . | . . Piercing Weapon . | . . Special Melee Weapon . | . . Unidentified Prototypes . | . . Parts Lost 7 | . 7 Power 1 | . 1 Propulsion 2 | . 2 Utility 1 | . 1 Weapon 3 | . 3 Highest Loss Streak 3 | . 3 To Critical Strikes . | . . Average Backups 7 | 3 8 Power . | . . Propulsion 1 | 1 2 Utility 4 | . 5 Weapon . | . . Tool/Special . | . . Unused Backups 9 | . 9 Power . | . . Propulsion . | . . Utility 8 | . 8 Weapon 1 | . 1 Tool/Special . | . . Average Slot Usage (%) 93 | . 93 Engine 13 | . 13 Treads 10 | . 10 Wheel 16 | . 16 Device 12 | . 12 Storage 14 | . 14 Energy Gun 11 | . 11 Ballistic Gun 11 | . 11 Impact Weapon 2 | . 2 Peak Build Rating 8 | 7 8 Average Rating 6 | 5 7 On Entrance 3 | . 7 Naked Turns . | . . Heaviest Build 90 | 15 90 Greatest Support 40 | 40 40 Greatest Overweight (x) 27 | . 27 Average Overweight (x) 1 | . 1 Largest Inventory Capacity 25 | 8 25 Average Capacity 16 | 7 18 Most Carried 11 | 6 11 Average Carried 7 | 3 8 Final Capacity 25 | 8 25 Final Carried 10 | 5 10 Class Distribution -------------------- 100% | Mutant Dominant Class ---------------- Mutant | -10/Materials Resources | -11 -10 ----------- Run | Yrd Mat Matter Collected 406 | 285 121 Remotely . | . . Salvage Created 440 | 97 343 Parts 30 | 11 19 Haulers Intercepted 1 | . 1 Recyclers Shooed . | . . Parts Field Recycled . | . . Retrieved Matter . | . . Parts Self-Destructed . | . . Prevented . | . . Kills | -11 -10 ------- Run | Yrd Mat Combat Hostiles Destroyed 6 | . 6 Guns 4 | . 4 Classes Destroyed 5 | 2 3 Tunneler 2 | 2 . Hauler 1 | . 1 Recycler 1 | 1 . Watcher 2 | . 2 Grunt 6 | . 6 Best Kill Streak 3 | 2 3 Combat Bots Only 3 | . 3 Max Kills in Single Turn 1 | 1 1 Gunslinging . | . . Exploded . | . . Melee . | . . Uniques/NPCs Destroyed . | . . Combat | -11 -10 -------- Run | Yrd Mat Hostile Shots Fired 73 | . 73 Missed 17 | . 17 Hits 56 | . 56 Projectile 56 | . 56 Damage Taken 699 | . 699 Core 252 | . 252 Absorbed by Shields . | . . Core Remaining (%) 100 | 100 . Volleys Fired 32 | 5 27 Largest 2 | 2 2 Hottest 60 | 60 60 Shots Fired 63 | 10 53 Gun 63 | 10 53 Cannon . | . . Launcher . | . . Special . | . . Kinetic 32 | 5 27 Thermal 10 | . 10 Explosive . | . . Electromagnetic 21 | 5 16 Robot Hit Streak 9 | 3 9 Robot Miss Streak 5 | 1 5 Penetration Max . | . . Secondary Targets 1 | . 1 Max Gunslinging Chain 1 | . 1 Shots Hit Robots 35 | 5 30 Core Hits 16 | 4 12 Critical Kills . | . . Critical Parts Destroyed 2 | . 2 Critical Strikes 2 | . 2 Smash 2 | . 2 Melee Attacks 6 | . 6 Impact 6 | . 6 Slashing . | . . Piercing . | . . Sneak Attacks . | . . Combat Hostiles . | . . Follow-up Attacks . | . . Damage Inflicted 587 | 63 524 Guns 475 | 63 412 Cannons . | . . Explosions . | . . Melee 112 | . 112 Ramming . | . . Kinetic 217 | 11 206 Thermal 43 | . 43 Explosive . | . . Electromagnetic 215 | 52 163 Impact 112 | . 112 Slashing . | . . Piercing . | . . Highest Corruption 1 | . 1 Average Corruption 1 | . 1 Corruption Purged . | . . Corruption Blocked . | . . Overload Shots . | . . Overflow Damage 85 | . 85 Projectiles . | . . Explosions . | . . Melee 85 | . 85 Knockbacks 1 | . 1 Impact 1 | . 1 Kinetic . | . . Secondary . | . . Self-Inflicted Damage . | . . Shots . | . . Rammed . | . . Targets Rammed . | . . Kicked . | . . Crushed . | . . Highest Temperature 96 | . 96 Average Temperature 36 | . 36 Received Heat Transfer 318 | . 318 Siege Activations . | . . Martial Activations . | . . Shielding Activations . | . . Robots Disrupted . | . . Combat Hostiles . | . . Robots Corrupted 2 | . 2 Combat Hostiles 2 | . 2 Parts Fried 3 | . 3 Impact Corruptions 3 | . 3 Robots Melted . | . . Combat Hostiles . | . . Parts Melted . | . . Heat Transferred 100 | . 100 Parts Sabotaged . | . . Parts Stolen . | . . Parts Stripped . | . . Power Chain Reactions . | . . Alert | -11 -10 ------- Run | Yrd Mat Maximum Alert Level . | . . Low Security (%) 100 | 100 100 Level 1 . | . . Level 2 . | . . Level 3 . | . . Level 4 . | . . Level 5 . | . . High Security . | . . Max Security . | . . Peak Influence 50 | 5 50 Initial . | . . Average 7 | . 9 Influence Increases 201 | 15 186 Destroy 0b10 Robot/C 120 | . 120 Destroy 0b10 Robot/NC 30 | 15 15 Destroy Leader 36 | . 36 Disable Machine 15 | . 15 Influence Decreases 201 | 15 186 Time Decay 164 | 15 149 Lost Part 37 | . 37 Squads Dispatched 2 | . 2 Investigation 1 | . 1 Extermination . | . . Reinforcement 1 | . 1 Assault . | . . Garrison . | . . Intercept . | . . Searches Triggered . | . . Construction Impeded . | . . Haulers Reinforced . | . . Active Scanning Responses . | . . Cargo Convoy Interrupts . | . . Stealth | -11 -10 --------- Run | Yrd Mat Distress Signals . | . . Communications Jammed . | . . Distress Signals . | . . Times Spotted 19 | . 19 Peak Tracking Total 5 | . 5 Tactical Retreats . | . . Traps | -11 -10 ------- Run | Yrd Mat Traps Triggered 3 | . 3 Indirectly . | . . Trap Hack Attempts . | . . Triggered . | . . Disarmed . | . . Reprogrammed . | . . Reused . | . . Traps Extracted . | . . Installed . | . . Triggered . | . . Machines | -11 -10 ---------- Run | Yrd Mat Machines Disabled 1 | . 1 Max in Single Turn 1 | . 1 Machines Repaired . | . . Machines Dismantled . | . . Machines Sabotaged . | . . Overloaded Fab Kills . | . . Hacking | -11 -10 --------- Run | Yrd Mat Machines Accessed 2 | . 2 Terminals 2 | . 2 Fabricators . | . . Repair Stations . | . . Recycling Units . | . . Scanalyzers . | . . Garrison Access . | . . Total Hacks 3 | . 3 Successful . | . . Failed 3 | . 3 Catastrophic 1 | . 1 Database Lockouts . | . . Manual 3 | . 3 Terminals 3 | . 3 Fabricators . | . . Repair Stations . | . . Recycling Units . | . . Scanalyzers . | . . Garrison Access . | . . Terminal Hacks . | . . Fabricator Hacks . | . . Repair Station Hacks . | . . Recycling Unit Hacks . | . . Scanalyzer . | . . Garrison Access Hacks . | . . Unauthorized Hacks . | . . Terminals . | . . Fabricators . | . . Repair Stations . | . . Recycling Units . | . . Scanalyzers . | . . Garrison Access . | . . Data Cores Recovered . | . . Used . | . . Hacking Detections 2 | . 2 Full Trace Events . | . . Feedback Events . | . . Feedback Blocked . | . . Robot Schematics Acquired . | . . Robots Built . | . . Authchips . | . . Time . | . . Total Robot Build Rating . | . . Part Schematics Acquired . | . . Parts Built . | . . Authchips . | . . Time . | . . Total Part Build Rating . | . . Parts Repaired . | . . Time . | . . Parts Recycled . | . . Recycled Matter . | . . Retrieved Matter . | . . Retrieved Components . | . . Parts Scanalyzed . | . . Part Schematics Acquired . | . . Parts Damaged . | . . Bothacking | -11 -10 ------------ Run | Yrd Mat Used RIF Installer . | . . Robots Hacked . | . . Non-combat . | . . Combat . | . . Robot Hacks Applied . | . . Relay Couplers Released . | . . Fabnet Peak Effective % . | . . Robots Rewired . | . . Allies Hacked . | . . Hacks Repelled . | . . Allies | -11 -10 -------- Run | Yrd Mat Total Allies . | . . Largest Group . | . . Highest-Rated Group . | . . Highest-Rated Ally . | . . Total Orders . | . . Ally Attacks . | . . Total Damage . | . . Kills . | . . Allies Corrupted . | . . Allies Melted . | . . Intel | -11 -10 ------- Run | Yrd Mat Active Infowar (turns) 510 | 31 479 Seismic 510 | 31 479 Robot Analysis Total . | . . Derelict Logs Recovered . | . . Drone Launches . | . . Drone Recoveries . | . . Exploration | -11 -10 ------------- Run | Yrd Mat Turns Passed 724 | 166 558 Spaces Moved 393 | 87 306 Core 9 | 8 1 Treads 184 | 79 105 Legs . | . . Wheels 200 | . 200 Hover . | . . Flight . | . . Fastest Speed 50 | 50 130 Average Speed 146 | 149 145 Slowest Speed 1400 | 160 1400 Overloaded Moves . | . . Propulsion Burnouts . | . . Robots Hopped . | . . Potential Cave-ins . | . . Cave-ins Triggered . | . . Exploration Rate (%) 25 | 6 44 Regions Visited 1 Branch Regions . Pre-discovered Areas . | . . Known Exits Taken . | . . Unknown Exits Taken 1 | 1 . Scrap Searched . | . . Spaces Dug . | . . Terrain Destroyed . | . . Melee . | . . Projectile . | . . AOE . | . . Terrain Rammed . | . . Walls Destroyed . | . . Machines Disabled . | . . Actions | -11 -10 --------- Run | Yrd Mat Total 471 | 113 358 Wait 4 | 3 1 Move 392 | 86 306 Hop . | . . Pick Up 21 | 12 9 Fast Attach . | . . Attach 9 | 7 2 Detach . | . . Swap 4 | . 4 Drop 3 | . 3 Fire 32 | 5 27 Melee 6 | . 6 Ram . | . . Kick . | . . Crush . | . . Escape Stasis . | . . Rewire . | . . Trap . | . . Miscellaneous . | . . Route ------- -11/Scrapyard -10/Materials (discovered 1 exit: [*Mat]) History --------- Turn | Location | Event 5 | -11/Scrapyard | Discovered new exit (range 16) 167 | -11/Scrapyard | Entered Materials 301 | -10/Materials | Discovered new exit (range 14) 314 | -10/Materials | Build established: Mutant 677 | -10/Materials | Lost 3 parts (1u2w) 701 | -10/Materials | Core integrity fell below 50% 723 | -10/Materials | Core integrity fell below 20% 725 | -10/Materials | Destroyed by S-10 Pest with Light Assault Rifle Last Messages --------------- 00675_ K-01 Serf cleans the Nuclear Reactor. 00680_ Triggered EMP Trap. 00680_ A bubble of electromagnetic force engulfs the area. 00680_ Chain reaction triggered in Lgt. Ion Engine. 00680_ Electrolysis Chamber disabled. 00684_ U-05 Engineer lays Concrete. 00684_ K-01 Serf collects debris. 00685_ U-05 Engineer lays Concrete. 00698_ Triggered EMP Trap. 00698_ A bubble of electromagnetic force engulfs the area. 00698_ Com. Wheel destroyed. 00698_ Electrolysis Chamber disabled. 00699_ U-05 Engineer lays Concrete. 00702_ U-05 Engineer builds a Wall. 00703_ U-05 Engineer lays Concrete. 00717_ Com. Wheel destroyed. Map ----- +----------------------------------------------------+ | ???????????????????????????????? #? | | ?????????????????????????????????############ #? | | ????????????????????????????????????????????# % #? | | ????????????????????????????????????????????# #? | | ????????????????????????????????????????????# #? | | ????????????????????????????????????????????# #? | | ????????????????????????????????????????????# #? | | ????????????????????????????????????????????# ## | | ????????????????????????????????????????????#% % | | ?????????????????????????????????????###????# | | ?????????????????????????????######### ###### """ | | ?????????????????????????????# """ | | ?????????????????????????????# ! """ | | ?????????????????????????????# """ | | ?????????????????????????????# """ | | ?????????????????????????????# """ "" ##### | | ?????????????????????????????# #??# | | ?????????????????????????????# ^ #??# | | ?????????????????????????????# "" """ #??# | | ?????????????????????????????# "" """ #??# | | ?????????????????????????????# "" """ #??# | | ?????????????????????????????# #??## | | ?????????????????????????????# #???? | | ?????????????????????????????# """ """ #???? | | ????????????##+############### """ """ #???? | | ????????? @ sg """ """ #???? | | ????????? s sg #???? | | ????????? ????? | | ??????????? ##+############### ####### ?????? | | ?????????????????????????????# #?????????????? | | ?????????????????????????????# #?????????????? | | ?????????????????????????????# a#?????????????? | | ?????????????????????????????# #?????????????? | | ?????????????????????????????? #?????????????? | | ?????????????????????????????? #?????????????? | | ?????????????????????????????? #?????????????? | | ?????????????????????????????? #?????????????? | | ?????????????????????????????? ?????????????? | | ?????????????????????????????? ?????????????? | | ??????????????????????????????###+???????????????? | | ?????????????????????????????????????????????????? | | ?????????????????????????????????????????????????? | | ?????????????????????????????????????????????????? | | ?????????????????????????????????????????????????? | | ?????????????????????????????????????????????????? | | ?????????????????????????????????????????????????? | | | | | | | | | +----------------------------------------------------+ Best States ------------- Heat Dissipation 25 Energy Generation 10 Energy Capacity 250 Matter Stores 300 Matter Capacity 300 Sight Range 16 Terrain Scan Density 10 Evasion (%) 40 Recoil Reduction 2 Item Schematics ----------------- None Robot Schematics ------------------ None Fabricated ------------ Nothing Repaired ---------- Nothing Alien Tech Used ----------------- None Achievements -------------- None Challenges ------------ None Game ------ Seed SpliceMomentumDevice Manual? 0 Play Time 00:05:36 Cumulative 164.9 hours Start 2025.08.19 @ 00:07:12 End 2025.08.19 @ 00:24:08 Sessions 1 Manual Loads 0 Difficulty Rogue Special Mode None Game No. 270 Rogue 270 Adventurer 0 Explorer 0 Win Type - Total 3 Types 2/0/1/0/0/0/0/0/0/0 Lore% 77 Gallery% 73 Achievement% 53 Wizard Run 0 Options --------- Layout 1 ASCII 0 Keyboard 0 Movement Mouse Keybinds 0 Fullscreen 1 Font 24/Smallcaps Map View 50x35 Zoom Use 0% Tactical HUD 1 Map Filters NONE Filters NONE Steam 1 RUN: cca3f0b6-dd4b-402f-aff2-9865afc62248